[Event "Late-Titled-Tuesday-Blitz-December-26-2023"]
[Site "Chess.com"]
[Date "2023.12.26"]
[Round "5"]
[White "UmutErdemGunduz"]
[Black "venturov"]
[Result "1-0"]
[WhiteElo "2702"]
[BlackElo "2495"]
[TimeControl "180+1"]
[EndTime "14:56:19 PST"]
[Termination "UmutErdemGunduz won by resignation"]

1. e4 {[%clk 0:03:00.9]} 1... Nf6 {[%clk 0:02:58.7]} 2. e5 {[%clk 0:03:01.1]}
2... Nd5 {[%clk 0:02:59.1]} 3. d4 {[%clk 0:03:01.8]} 3... d6 {[%clk 0:02:59.7]}
4. Nf3 {[%clk 0:03:02.3]} 4... dxe5 {[%clk 0:02:59.4]} 5. Nxe5 {[%clk
0:03:03.2]} 5... c6 {[%clk 0:03:00]} 6. Be2 {[%clk 0:03:02]} 6... Bf5 {[%clk
0:02:57.1]} 7. O-O {[%clk 0:03:01]} 7... Nd7 {[%clk 0:02:57.5]} 8. Nf3 {[%clk
0:03:00.6]} 8... e6 {[%clk 0:02:57]} 9. c4 {[%clk 0:03:01.1]} 9... N5f6 {[%clk
0:02:53.4]} 10. Nc3 {[%clk 0:03:00.7]} 10... Bd6 {[%clk 0:02:52.5]} 11. Nh4
{[%clk 0:02:54.5]} 11... Bg6 {[%clk 0:02:51.4]} 12. Re1 {[%clk 0:02:47.8]} 12...
Ne4 {[%clk 0:02:31.2]} 13. Nxg6 {[%clk 0:02:44.1]} 13... Nxc3 {[%clk 0:02:28.2]}
14. bxc3 {[%clk 0:02:41.9]} 14... Bxh2+ {[%clk 0:01:50.9]} 15. Kxh2 {[%clk
0:02:42.8]} 15... hxg6+ {[%clk 0:01:51.1]} 16. Kg1 {[%clk 0:02:18.6]} 16... Qh4
{[%clk 0:01:50.5]} 17. f3 {[%clk 0:02:19]} 17... O-O-O {[%clk 0:01:33.1]} 18.
Bf1 {[%clk 0:02:18.1]} 18... Qg3 {[%clk 0:01:19.8]} 19. Re4 {[%clk 0:02:15.9]}
19... Nf6 {[%clk 0:01:04.5]} 20. Qe1 {[%clk 0:00:56.4]} 20... Qh2+ {[%clk
0:01:01.9]} 21. Kf2 {[%clk 0:00:56.5]} 21... Nxe4+ {[%clk 0:00:59.3]} 22. Qxe4
{[%clk 0:00:56.5]} 22... Rhe8 {[%clk 0:00:22.5]} 23. Bf4 {[%clk 0:00:55.5]}
23... Qh5 {[%clk 0:00:22]} 24. Qe5 {[%clk 0:00:52.1]} 24... Qxe5 {[%clk
0:00:21.3]} 25. Bxe5 {[%clk 0:00:53]} 25... f6 {[%clk 0:00:21.9]} 26. Bg3 {[%clk
0:00:52.6]} 26... e5 {[%clk 0:00:20.6]} 27. Rd1 {[%clk 0:00:52.7]} 27... f5
{[%clk 0:00:17]} 28. d5 {[%clk 0:00:50.2]} 28... g5 {[%clk 0:00:15.5]} 29. Ke1
{[%clk 0:00:47.4]} 29... e4 {[%clk 0:00:14.7]} 30. f4 {[%clk 0:00:47.8]} 30...
gxf4 {[%clk 0:00:13.9]} 31. Bxf4 {[%clk 0:00:48.6]} 31... e3 {[%clk 0:00:10.5]}
32. Be2 {[%clk 0:00:47.3]} 32... Re4 {[%clk 0:00:10.5]} 33. g3 {[%clk
0:00:46.6]} 33... Rg8 {[%clk 0:00:09.3]} 34. Bd3 {[%clk 0:00:46.3]} 34... Ree8
{[%clk 0:00:07.4]} 35. Bxf5+ {[%clk 0:00:46.7]} 35... Kd8 {[%clk 0:00:06.4]} 36.
dxc6+ {[%clk 0:00:44.6]} 36... Ke7 {[%clk 0:00:06.9]} 37. Rd7+ {[%clk
0:00:45.4]} 37... Kf6 {[%clk 0:00:07.1]} 38. g4 {[%clk 0:00:36.1]} 38... bxc6
{[%clk 0:00:06.4]} 39. Rd6+ {[%clk 0:00:34]} 39... Kf7 {[%clk 0:00:07]} 40. Bg6+
{[%clk 0:00:34]} 40... Ke7 {[%clk 0:00:07.7]} 41. Bxe8 {[%clk 0:00:34.4]} 41...
Rxe8 {[%clk 0:00:08]} 42. Rxc6 {[%clk 0:00:34.1]} 42... Kd7 {[%clk 0:00:05.3]}
43. Rc7+ {[%clk 0:00:34.2]} 43... Ke6 {[%clk 0:00:03.5]} 44. Rxg7 {[%clk
0:00:34.4]} 44... a5 {[%clk 0:00:04]} 45. Bxe3 {[%clk 0:00:33.7]} 45... Kf6
{[%clk 0:00:04]} 46. Ra7 {[%clk 0:00:31.5]} 46... Rxe3+ {[%clk 0:00:04.3]} 47.
Kd2 {[%clk 0:00:32.1]} 47... Rg3 {[%clk 0:00:04.7]} 48. Rxa5 {[%clk 0:00:31.2]}
48... Rxg4 {[%clk 0:00:05.4]} 49. Rc5 {[%clk 0:00:29.6]} 49... Ke6 {[%clk
0:00:05.8]} 50. Kc2 {[%clk 0:00:29.3]} 50... Kd6 {[%clk 0:00:06.4]} 51. Rd5+
{[%clk 0:00:29.7]} 51... Kc6 {[%clk 0:00:06.8]} 52. Rd4 {[%clk 0:00:30.6]} 52...
Rg1 {[%clk 0:00:05.7]} 53. Kb3 {[%clk 0:00:31.3]} 53... Kc5 {[%clk 0:00:05.5]}
54. Rd5+ {[%clk 0:00:31]} 54... Kc6 {[%clk 0:00:06.2]} 55. Rh5 {[%clk
0:00:26.6]} 55... Rb1+ {[%clk 0:00:06.3]} 56. Ka3 {[%clk 0:00:26.7]} 56... Rc1
{[%clk 0:00:05.7]} 57. Kb3 {[%clk 0:00:25.8]} 57... Rb1+ {[%clk 0:00:05.7]} 58.
Ka3 {[%clk 0:00:25.9]} 58... Rc1 {[%clk 0:00:06.4]} 59. Kb2 {[%clk 0:00:26.4]}
59... Rf1 {[%clk 0:00:06.3]} 60. c5 {[%clk 0:00:27]} 60... Rf2+ {[%clk
0:00:03.5]} 61. Kb3 {[%clk 0:00:27.4]} 61... Rf1 {[%clk 0:00:04.1]} 62. Kb4
{[%clk 0:00:26]} 62... Rb1+ {[%clk 0:00:04.3]} 63. Kc4 {[%clk 0:00:26.3]} 63...
Ra1 {[%clk 0:00:03.9]} 64. Rh6+ {[%clk 0:00:26.5]} 64... Kc7 {[%clk 0:00:04.1]}
65. Ra6 {[%clk 0:00:23.6]} 65... Rh1 {[%clk 0:00:04.2]} 66. a4 {[%clk
0:00:22.3]} 66... Rh3 {[%clk 0:00:04.6]} 67. a5 {[%clk 0:00:21.8]} 67... Kb7
{[%clk 0:00:04.3]} 68. Rb6+ {[%clk 0:00:22.1]} 68... Ka7 {[%clk 0:00:05]} 69. c6
{[%clk 0:00:22.7]} 69... Rh5 {[%clk 0:00:05]} 70. Kb4 {[%clk 0:00:22.7]} 70...
Rh4+ {[%clk 0:00:04.9]} 71. c4 {[%clk 0:00:23.2]} 71... Rh7 {[%clk 0:00:05.1]}
72. Rb7+ {[%clk 0:00:22.7]} 72... Rxb7+ {[%clk 0:00:05.7]} 73. cxb7 {[%clk
0:00:23.6]} 73... Kxb7 {[%clk 0:00:06.6]} 74. Kb5 {[%clk 0:00:24.1]} 74... Ka7
{[%clk 0:00:06.7]} 75. c5 {[%clk 0:00:24.8]} 75... Kb7 {[%clk 0:00:07.6]} 76.
c6+ {[%clk 0:00:25.4]} 76... Kc7 {[%clk 0:00:08.4]} 77. Kc5 {[%clk 0:00:25.8]}
77... Kb8 {[%clk 0:00:09.3]} 78. Kb6 {[%clk 0:00:26.5]} 78... Ka8 {[%clk
0:00:09.8]} 79. a6 {[%clk 0:00:26.2]} 79... Kb8 {[%clk 0:00:10.7]} 80. a7+
{[%clk 0:00:26.5]} 80... Ka8 {[%clk 0:00:11.6]} 81. Kc7 {[%clk 0:00:27]} 81...
Kxa7 {[%clk 0:00:11.9]} 82. Kd7 {[%clk 0:00:27.9]} 82... Kb8 {[%clk 0:00:10.8]}
83. c7+ {[%clk 0:00:28.8]} 83... Ka7 {[%clk 0:00:11.7]} 84. c8=Q {[%clk
0:00:29.5]} 84... Kb6 {[%clk 0:00:12.2]} 85. Kd6 {[%clk 0:00:29.6]} 1-0

[Event "Late-Titled-Tuesday-Blitz-December-26-2023"]
[Site "Chess.com"]
[Date "2023.12.26"]
[Round "5"]
[White "marvinguevara"]
[Black "Dr_crypt"]
[Result "0-1"]
[WhiteElo "2235"]
[BlackElo "2373"]
[TimeControl "180+1"]
[EndTime "14:56:20 PST"]
[Termination "Dr_crypt won on time"]

1. e4 {[%clk 0:03:00.9]} 1... e5 {[%clk 0:02:57.5]} 2. Nf3 {[%clk 0:03:00.2]}
2... Nc6 {[%clk 0:02:57.4]} 3. Bc4 {[%clk 0:02:59.8]} 3... Nf6 {[%clk
0:02:57.1]} 4. Ng5 {[%clk 0:02:59.1]} 4... d5 {[%clk 0:02:55.9]} 5. exd5 {[%clk
0:02:59.6]} 5... b5 {[%clk 0:02:54.8]} 6. Bb3 {[%clk 0:02:46.3]} 6... Nd4 {[%clk
0:02:42.8]} 7. Nc3 {[%clk 0:02:45.6]} 7... h6 {[%clk 0:02:20.6]} 8. Nge4 {[%clk
0:02:40.5]} 8... Nxe4 {[%clk 0:02:19.1]} 9. Nxe4 {[%clk 0:02:40.7]} 9... Nxb3
{[%clk 0:02:17.4]} 10. axb3 {[%clk 0:02:40.8]} 10... Qxd5 {[%clk 0:02:18.1]} 11.
d3 {[%clk 0:02:41.3]} 11... f5 {[%clk 0:01:57.4]} 12. Qh5+ {[%clk 0:02:14.2]}
12... Qf7 {[%clk 0:01:55.9]} 13. Qxf7+ {[%clk 0:02:13.4]} 13... Kxf7 {[%clk
0:01:56.8]} 14. Nc3 {[%clk 0:02:13.3]} 14... Bd7 {[%clk 0:01:56.1]} 15. Bd2
{[%clk 0:02:07.9]} 15... Bc5 {[%clk 0:01:52]} 16. O-O {[%clk 0:02:07.2]} 16...
Rae8 {[%clk 0:01:44]} 17. Be3 {[%clk 0:02:04.4]} 17... Bd4 {[%clk 0:01:37.8]}
18. Bxd4 {[%clk 0:01:43.1]} 18... exd4 {[%clk 0:01:37.4]} 19. Nd5 {[%clk
0:01:40.3]} 19... Re2 {[%clk 0:01:12.5]} 20. Rfe1 {[%clk 0:01:25.8]} 20... Rhe8
{[%clk 0:00:54.2]} 21. Rxe2 {[%clk 0:01:25.2]} 21... Rxe2 {[%clk 0:00:54.9]} 22.
Rc1 {[%clk 0:01:22.6]} 22... c6 {[%clk 0:00:45.3]} 23. Kf1 {[%clk 0:01:17.6]}
23... Re8 {[%clk 0:00:30.5]} 24. Nf4 {[%clk 0:01:17]} 24... g5 {[%clk
0:00:27.4]} 25. Ne2 {[%clk 0:01:16]} 25... c5 {[%clk 0:00:25.5]} 26. Ra1 {[%clk
0:01:15.8]} 26... Ra8 {[%clk 0:00:24.5]} 27. b4 {[%clk 0:01:14.2]} 27... cxb4
{[%clk 0:00:09.3]} 28. Nxd4 {[%clk 0:01:14]} 28... a6 {[%clk 0:00:07.5]} 29. Ke2
{[%clk 0:00:56.6]} 29... a5 {[%clk 0:00:07.7]} 30. Kd2 {[%clk 0:00:52.3]} 30...
a4 {[%clk 0:00:08.1]} 31. Nf3 {[%clk 0:00:41.6]} 31... Ke6 {[%clk 0:00:08.1]}
32. Nd4+ {[%clk 0:00:40.5]} 32... Kd5 {[%clk 0:00:07.6]} 33. Ne2 {[%clk
0:00:38.5]} 33... a3 {[%clk 0:00:05]} 34. b3 {[%clk 0:00:35]} 34... Rc8 {[%clk
0:00:03.7]} 35. Nc1 {[%clk 0:00:32.8]} 35... f4 {[%clk 0:00:03.1]} 36. Na2
{[%clk 0:00:31.9]} 36... Kc5 {[%clk 0:00:03.8]} 37. Re1 {[%clk 0:00:31.8]} 37...
Re8 {[%clk 0:00:03.7]} 38. Rxe8 {[%clk 0:00:30.2]} 38... Bxe8 {[%clk 0:00:04.6]}
39. c3 {[%clk 0:00:22.6]} 39... bxc3+ {[%clk 0:00:04.6]} 40. Kxc3 {[%clk
0:00:23]} 40... Bc6 {[%clk 0:00:04.5]} 41. b4+ {[%clk 0:00:19.7]} 41... Kd6
{[%clk 0:00:03.4]} 42. Kb3 {[%clk 0:00:20]} 42... Bxg2 {[%clk 0:00:03.6]} 43.
Kxa3 {[%clk 0:00:20]} 43... Bf1 {[%clk 0:00:04.1]} 44. Nc1 {[%clk 0:00:19.8]}
44... Kd5 {[%clk 0:00:04.7]} 45. Kb3 {[%clk 0:00:20]} 45... Kd4 {[%clk 0:00:05]}
46. Kc2 {[%clk 0:00:20.5]} 46... g4 {[%clk 0:00:05.1]} 47. Kd2 {[%clk
0:00:20.7]} 47... h5 {[%clk 0:00:04.4]} 48. Nb3+ {[%clk 0:00:20.6]} 48... Kd5
{[%clk 0:00:04.5]} 49. Nc1 {[%clk 0:00:19]} 49... h4 {[%clk 0:00:05]} 50. Ke1
{[%clk 0:00:14.3]} 50... Bg2 {[%clk 0:00:04.8]} 51. Ne2 {[%clk 0:00:13.2]} 51...
Ke5 {[%clk 0:00:04.5]} 52. d4+ {[%clk 0:00:11.6]} 52... Kf5 {[%clk 0:00:04.9]}
53. Nc3 {[%clk 0:00:09.6]} 53... h3 {[%clk 0:00:04.5]} 54. Nxb5 {[%clk
0:00:08.8]} 54... g3 {[%clk 0:00:05]} 55. fxg3 {[%clk 0:00:08.1]} 55... fxg3
{[%clk 0:00:05.7]} 56. Nd6+ {[%clk 0:00:05.6]} 56... Kg4 {[%clk 0:00:04.8]} 57.
Nf7 {[%clk 0:00:01.3]} 57... gxh2 {[%clk 0:00:04.6]} 58. Ne5+ {[%clk 0:00:02.2]}
58... Kf4 {[%clk 0:00:04.9]} 59. Nf3 {[%clk 0:00:03.1]} 59... Kxf3 {[%clk
0:00:05.2]} 0-1

[Event "Late-Titled-Tuesday-Blitz-December-26-2023"]
[Site "Chess.com"]
[Date "2023.12.26"]
[Round "5"]
[White "dmarcolino"]
[Black "Abduzhaparov"]
[Result "0-1"]
[WhiteElo "2116"]
[BlackElo "2395"]
[TimeControl "180+1"]
[EndTime "14:56:28 PST"]
[Termination "Abduzhaparov won by resignation"]

1. d4 {[%clk 0:03:00.9]} 1... d6 {[%clk 0:03:00.9]} 2. c4 {[%clk 0:02:58.7]}
2... Nf6 {[%clk 0:03:01.8]} 3. Nc3 {[%clk 0:02:56.3]} 3... Nbd7 {[%clk
0:03:02.7]} 4. e4 {[%clk 0:02:55.1]} 4... e5 {[%clk 0:03:03.6]} 5. Nf3 {[%clk
0:02:54.6]} 5... Be7 {[%clk 0:03:03.3]} 6. h3 {[%clk 0:02:54]} 6... O-O {[%clk
0:03:03.2]} 7. Be3 {[%clk 0:02:54.1]} 7... exd4 {[%clk 0:03:02.2]} 8. Nxd4
{[%clk 0:02:53.9]} 8... Re8 {[%clk 0:03:02.4]} 9. Bd3 {[%clk 0:02:52.5]} 9...
Nc5 {[%clk 0:03:01.7]} 10. Qc2 {[%clk 0:02:38.9]} 10... a5 {[%clk 0:02:58.9]}
11. O-O {[%clk 0:02:36.4]} 11... Bf8 {[%clk 0:02:57.7]} 12. Rfe1 {[%clk
0:02:35.5]} 12... c6 {[%clk 0:02:57.6]} 13. Rad1 {[%clk 0:02:29.3]} 13... Nfd7
{[%clk 0:02:48.9]} 14. Bf1 {[%clk 0:02:17.5]} 14... Qf6 {[%clk 0:02:35.8]} 15.
b3 {[%clk 0:01:52.3]} 15... Ne5 {[%clk 0:02:27.8]} 16. a3 {[%clk 0:01:12.4]}
16... Qg6 {[%clk 0:02:02.9]} 17. Kh1 {[%clk 0:01:05.5]} 17... Ned7 {[%clk
0:01:52.2]} 18. b4 {[%clk 0:01:03.3]} 18... axb4 {[%clk 0:01:51.1]} 19. axb4
{[%clk 0:01:04.2]} 19... Nxe4 {[%clk 0:01:24.5]} 20. Bd3 {[%clk 0:01:04.3]}
20... Ndf6 {[%clk 0:01:23.6]} 21. Bf4 {[%clk 0:00:43.2]} 21... Bf5 {[%clk
0:01:03.8]} 22. Nxf5 {[%clk 0:00:20.2]} 22... Qxf5 {[%clk 0:01:04.7]} 23. Nxe4
{[%clk 0:00:12.2]} 23... Qxf4 {[%clk 0:00:58.1]} 24. Nxf6+ {[%clk 0:00:11]}
24... Qxf6 {[%clk 0:00:59]} 25. Bxh7+ {[%clk 0:00:10]} 25... Kh8 {[%clk
0:00:59.4]} 26. Bd3 {[%clk 0:00:09]} 26... g6 {[%clk 0:00:53.6]} 27. b5 {[%clk
0:00:06.8]} 27... Rxe1+ {[%clk 0:00:49.6]} 28. Rxe1 {[%clk 0:00:06.7]} 28... Ra1
{[%clk 0:00:50.5]} 29. Rxa1 {[%clk 0:00:05.8]} 29... Qxa1+ {[%clk 0:00:51.4]}
30. Kh2 {[%clk 0:00:06]} 30... d5 {[%clk 0:00:47.1]} 31. cxd5 {[%clk 0:00:05.7]}
31... Qe5+ {[%clk 0:00:44.8]} 32. g3 {[%clk 0:00:05.9]} 32... Qxd5 {[%clk
0:00:42.6]} 33. bxc6 {[%clk 0:00:06.1]} 33... bxc6 {[%clk 0:00:43]} 34. Qc4
{[%clk 0:00:05.2]} 34... Qf3 {[%clk 0:00:26.3]} 35. Qd4+ {[%clk 0:00:04.2]}
35... Kh7 {[%clk 0:00:17.9]} 36. Qe3 {[%clk 0:00:03.8]} 36... Qxe3 {[%clk
0:00:14.1]} 37. fxe3 {[%clk 0:00:04.7]} 37... Kg7 {[%clk 0:00:12.7]} 38. g4
{[%clk 0:00:04.5]} 38... Kf6 {[%clk 0:00:12.7]} 39. Kg2 {[%clk 0:00:04.8]} 39...
Ke5 {[%clk 0:00:12.5]} 40. Kf3 {[%clk 0:00:05.3]} 40... g5 {[%clk 0:00:11.2]}
41. Bc4 {[%clk 0:00:05.5]} 41... f6 {[%clk 0:00:11]} 42. Bf7 {[%clk 0:00:04.8]}
42... Kd6 {[%clk 0:00:10]} 43. Ke4 {[%clk 0:00:04.6]} 43... Be7 {[%clk 0:00:08]}
44. Kd3 {[%clk 0:00:05]} 44... Ke5 {[%clk 0:00:06.7]} 45. Bg6 {[%clk 0:00:03.3]}
45... Bd8 {[%clk 0:00:06.8]} 46. Kc4 {[%clk 0:00:03.5]} 46... Bb6 {[%clk
0:00:06.5]} 47. e4 {[%clk 0:00:01.7]} 47... Kd6 {[%clk 0:00:05.4]} 48. Be8
{[%clk 0:00:01.9]} 48... Be3 {[%clk 0:00:04.7]} 49. Bg6 {[%clk 0:00:01.9]} 49...
Bf4 {[%clk 0:00:04]} 50. Bf5 {[%clk 0:00:02.8]} 50... Be3 {[%clk 0:00:03.8]} 51.
Bg6 {[%clk 0:00:03.6]} 51... Ke5 {[%clk 0:00:03.7]} 52. Bf5 {[%clk 0:00:04]}
52... Kf4 {[%clk 0:00:03.3]} 53. Bd7 {[%clk 0:00:04.2]} 53... c5 {[%clk
0:00:03.5]} 54. Bf5 {[%clk 0:00:03.7]} 54... Kg3 {[%clk 0:00:03.9]} 55. Kd5
{[%clk 0:00:03.6]} 55... Kxh3 {[%clk 0:00:04.1]} 56. Ke6 {[%clk 0:00:04.2]}
56... Kg3 {[%clk 0:00:04.6]} 57. Kxf6 {[%clk 0:00:04.4]} 57... Kf4 {[%clk
0:00:05.5]} 58. Ke6 {[%clk 0:00:04.2]} 58... c4 {[%clk 0:00:04.5]} 59. e5 {[%clk
0:00:03.7]} 59... Bd4 {[%clk 0:00:04.4]} 60. Kf6 {[%clk 0:00:03.6]} 60... c3
{[%clk 0:00:04.1]} 61. Bc2 {[%clk 0:00:02.5]} 61... Bxe5+ {[%clk 0:00:05]} 62.
Kg6 {[%clk 0:00:02.3]} 62... Bc7 {[%clk 0:00:04.3]} 63. Kf6 {[%clk 0:00:02.3]}
63... Bd8+ {[%clk 0:00:05.2]} 64. Ke6 {[%clk 0:00:02.8]} 64... Ke3 {[%clk
0:00:05.3]} 65. Kd5 {[%clk 0:00:03.7]} 65... Kd2 {[%clk 0:00:04.9]} 66. Bg6
{[%clk 0:00:03.6]} 66... c2 {[%clk 0:00:05.5]} 67. Bxc2 {[%clk 0:00:03]} 67...
Kxc2 {[%clk 0:00:06.4]} 68. Ke4 {[%clk 0:00:02.7]} 68... Bc7 {[%clk 0:00:07.3]}
69. Kf5 {[%clk 0:00:02.1]} 69... Bf4 {[%clk 0:00:08.2]} 70. Kg6 {[%clk
0:00:02.3]} 70... Kd2 {[%clk 0:00:09.1]} 71. Kh5 {[%clk 0:00:02.8]} 71... Ke1
{[%clk 0:00:10]} 72. Kg6 {[%clk 0:00:03.5]} 72... Kf1 {[%clk 0:00:10.9]} 73. Kf5
{[%clk 0:00:04.2]} 73... Kg2 {[%clk 0:00:11.8]} 74. Ke4 {[%clk 0:00:05]} 74...
Kg3 {[%clk 0:00:12.7]} 75. Kd3 {[%clk 0:00:05.4]} 75... Kxg4 {[%clk 0:00:13.6]}
76. Ke2 {[%clk 0:00:06.1]} 76... Kg3 {[%clk 0:00:13.7]} 77. Kf1 {[%clk 0:00:07]}
77... Kf3 {[%clk 0:00:13.7]} 78. Kg1 {[%clk 0:00:07.5]} 78... Bd6 {[%clk
0:00:14]} 79. Kh1 {[%clk 0:00:08.4]} 79... Bf8 {[%clk 0:00:14.1]} 80. Kg1 {[%clk
0:00:09.3]} 80... g4 {[%clk 0:00:14.5]} 81. Kh1 {[%clk 0:00:10.2]} 81... g3
{[%clk 0:00:14.7]} 82. Kg1 {[%clk 0:00:11.1]} 82... g2 {[%clk 0:00:15.1]} 83.
Kh2 {[%clk 0:00:11.4]} 83... Kf2 {[%clk 0:00:15.6]} 0-1

[Event "Late-Titled-Tuesday-Blitz-December-26-2023"]
[Site "Chess.com"]
[Date "2023.12.26"]
[Round "5"]
[White "Kapitan_Bayan"]
[Black "CarlosjPineror"]
[Result "1-0"]
[WhiteElo "2337"]
[BlackElo "2494"]
[TimeControl "180+1"]
[EndTime "14:56:33 PST"]
[Termination "Kapitan_Bayan won by resignation"]

1. e4 {[%clk 0:03:00.9]} 1... c5 {[%clk 0:02:49.1]} 2. Nf3 {[%clk 0:03:00.2]}
2... e6 {[%clk 0:02:49.1]} 3. d4 {[%clk 0:03:00.4]} 3... cxd4 {[%clk 0:02:50]}
4. Nxd4 {[%clk 0:03:01.2]} 4... a6 {[%clk 0:02:50.4]} 5. Nc3 {[%clk 0:03:01.6]}
5... Qc7 {[%clk 0:02:50.6]} 6. Bd3 {[%clk 0:03:02.2]} 6... Nf6 {[%clk
0:02:50.9]} 7. Qe2 {[%clk 0:03:02.6]} 7... Bd6 {[%clk 0:02:46.2]} 8. Ndb5 {[%clk
0:03:00]} 8... axb5 {[%clk 0:02:38.2]} 9. Nxb5 {[%clk 0:02:59.8]} 9... Qc6
{[%clk 0:02:20.6]} 10. Nxd6+ {[%clk 0:02:48.3]} 10... Qxd6 {[%clk 0:02:21.5]}
11. e5 {[%clk 0:02:48.6]} 11... Qb4+ {[%clk 0:02:13.6]} 12. c3 {[%clk
0:02:36.3]} 12... Qg4 {[%clk 0:01:51.2]} 13. exf6 {[%clk 0:02:35.5]} 13... Qxe2+
{[%clk 0:01:50.7]} 14. Kxe2 {[%clk 0:02:29.7]} 14... gxf6 {[%clk 0:01:47]} 15.
g4 {[%clk 0:02:18.9]} 15... d5 {[%clk 0:01:42.8]} 16. Bh6 {[%clk 0:02:16.6]}
16... Ke7 {[%clk 0:01:38.1]} 17. h4 {[%clk 0:02:06.7]} 17... Nc6 {[%clk
0:01:35.3]} 18. g5 {[%clk 0:02:06.1]} 18... f5 {[%clk 0:01:06.3]} 19. Bg7 {[%clk
0:01:59]} 19... Rg8 {[%clk 0:01:04.6]} 20. Bf6+ {[%clk 0:01:59.2]} 20... Kd6
{[%clk 0:01:05.3]} 21. f4 {[%clk 0:01:55.6]} 21... b6 {[%clk 0:01:03.6]} 22. b4
{[%clk 0:01:43.1]} 22... e5 {[%clk 0:00:45.3]} 23. fxe5+ {[%clk 0:01:09.9]}
23... Nxe5 {[%clk 0:00:44.8]} 24. Rhd1 {[%clk 0:00:52.6]} 24... Nxd3 {[%clk
0:00:42.5]} 25. Kxd3 {[%clk 0:00:51.2]} 25... Ba6+ {[%clk 0:00:42.4]} 26. Kc2
{[%clk 0:00:48.9]} 26... Bc4 {[%clk 0:00:38.5]} 27. a4 {[%clk 0:00:45.5]} 27...
Rge8 {[%clk 0:00:37.2]} 28. Rd2 {[%clk 0:00:40.7]} 28... f4 {[%clk 0:00:27.4]}
29. Bd4 {[%clk 0:00:40.2]} 29... b5 {[%clk 0:00:19.5]} 30. a5 {[%clk 0:00:37.5]}
30... f3 {[%clk 0:00:19.3]} 31. Rf2 {[%clk 0:00:26.4]} 31... Re2+ {[%clk
0:00:17.8]} 32. Rxe2 {[%clk 0:00:26.7]} 32... fxe2 {[%clk 0:00:17.8]} 33. Re1
{[%clk 0:00:26.1]} 33... Re8 {[%clk 0:00:17]} 34. a6 {[%clk 0:00:25.2]} 34...
Kc6 {[%clk 0:00:16.8]} 35. a7 {[%clk 0:00:25.3]} 35... Kb7 {[%clk 0:00:16.9]}
36. Kd2 {[%clk 0:00:24.7]} 36... Re4 {[%clk 0:00:15.1]} 37. h5 {[%clk
0:00:24.2]} 37... Rh4 {[%clk 0:00:13.4]} 38. h6 {[%clk 0:00:24.3]} 38... Rg4
{[%clk 0:00:12.8]} 39. Bf6 {[%clk 0:00:24.4]} 39... Rg3 {[%clk 0:00:13]} 40. Bd4
{[%clk 0:00:21.2]} 40... Rxg5 {[%clk 0:00:12.8]} 41. Ra1 {[%clk 0:00:19.2]}
41... Ka8 {[%clk 0:00:13]} 42. Ra6 {[%clk 0:00:18.9]} 42... Rg8 {[%clk
0:00:07.2]} 43. Rf6 {[%clk 0:00:16.9]} 43... Re8 {[%clk 0:00:07.1]} 44. Ke1
{[%clk 0:00:16.5]} 44... Bd3 {[%clk 0:00:02.9]} 45. Rxf7 {[%clk 0:00:16.4]}
45... Rg8 {[%clk 0:00:03]} 46. Rg7 {[%clk 0:00:16.4]} 46... Re8 {[%clk
0:00:02.5]} 47. Rg3 {[%clk 0:00:15.8]} 47... Bc4 {[%clk 0:00:02.4]} 48. Rg7
{[%clk 0:00:15.3]} 48... Bd3 {[%clk 0:00:02.8]} 49. Bc5 {[%clk 0:00:14.4]} 49...
Rc8 {[%clk 0:00:02.2]} 50. Rg3 {[%clk 0:00:13.1]} 50... Bc4 {[%clk 0:00:02.4]}
51. Re3 {[%clk 0:00:12.4]} 51... Rg8 {[%clk 0:00:02.2]} 52. Rf3 {[%clk
0:00:10.6]} 52... Re8 {[%clk 0:00:02.4]} 53. Rf7 {[%clk 0:00:09.8]} 53... Bd3
{[%clk 0:00:02.8]} 54. Rg7 {[%clk 0:00:09.5]} 54... Rc8 {[%clk 0:00:03]} 55. Rg1
{[%clk 0:00:09.4]} 55... Re8 {[%clk 0:00:02.4]} 56. Kd2 {[%clk 0:00:09]} 56...
Bc4 {[%clk 0:00:02.7]} 57. Ke1 {[%clk 0:00:09.6]} 57... Bd3 {[%clk 0:00:02.9]}
58. Rg5 {[%clk 0:00:09.9]} 58... Rc8 {[%clk 0:00:02.8]} 59. Rxd5 {[%clk
0:00:09.7]} 59... Bc4 {[%clk 0:00:02.9]} 60. Rg5 {[%clk 0:00:09.8]} 60... Kb7
{[%clk 0:00:02.9]} 61. Rg7+ {[%clk 0:00:09.7]} 61... Kc6 {[%clk 0:00:03.3]} 62.
Rxh7 {[%clk 0:00:10.1]} 62... Rd8 {[%clk 0:00:03.9]} 63. Re7 {[%clk 0:00:03.4]}
63... Rd1+ {[%clk 0:00:03.5]} 64. Kf2 {[%clk 0:00:03.9]} 64... Rf1+ {[%clk
0:00:04.4]} 65. Kg3 {[%clk 0:00:04.5]} 65... e1=Q+ {[%clk 0:00:05.3]} 66. Rxe1
{[%clk 0:00:03.7]} 66... Rxe1 {[%clk 0:00:06.2]} 67. a8=Q+ {[%clk 0:00:04.2]}
67... Kd7 {[%clk 0:00:06.3]} 68. Qb7+ {[%clk 0:00:04.4]} 68... Ke6 {[%clk
0:00:06.6]} 69. Qb6+ {[%clk 0:00:05.3]} 69... Kf7 {[%clk 0:00:07]} 70. h7 {[%clk
0:00:06.1]} 70... Kg7 {[%clk 0:00:07.1]} 71. Qc7+ {[%clk 0:00:06.7]} 71... Kh8
{[%clk 0:00:07.2]} 72. Bd4+ {[%clk 0:00:07.6]} 1-0